[Event "FIDE Open World Rapid 2024"]
[Site "New York"]
[Date "2024.12.27"]
[Round "7.40"]
[White "Esquivel Golcher, Luis Enrique"]
[Black "Larrea, Manuel"]
[Result "1-0"]
[ECO "B59"]
[WhiteElo "2081"]
[BlackElo "2259"]
[Annotator "ChessBase"]
[PlyCount "121"]
[EventDate "2024.12.14"]
[EventType "swiss"]
[EventCountry "USA"]
[SourceTitle "playchess.com"]
[Source "ChessBase"]
[SourceQuality "1"]
[TimeControl "900+10"]

1. e4 {[%emt 0:00:03]} c5 {[%emt 0:00:01]} 2. Nf3 {[%emt 0:00:03]} Nc6 {[%emt 0:00:01]} 3. d4 {[%emt 0:00:01]} cxd4 {[%emt 0:00:01]} 4. Nxd4 {[%emt 0:00:04]} Nf6 {[%emt 0:00:01]} 5. Nc3 {[%emt 0:00:02]} d6 {[%emt 0:00:01]} 6. Be2 {[%emt 0:00:06]} e5 {[%emt 0:00:02]} 7. Nb3 {[%emt 0:00:02]} Be7 {[%emt 0:00:03]} 8. O-O {[%emt 0:00:07]} O-O {[%emt 0:00:02]} 9. Be3 {[%emt 0:00:10]} a5 {[%emt 0:00:03]} 10. a4 {[%emt 0:00:01]} Be6 {[%emt 0:00:07]} 11. Bf3 {[%emt 0:00:09]} Nb4 {[%emt 0:00:17]} 12. Bg5 {[%emt 0:01:52]} Rc8 {[%emt 0:00:27]} 13. Rc1 {[%emt 0:00:13]} h6 {[%emt 0:00:54]} 14. Bxf6 {[%emt 0:00:40]} Bxf6 {[%emt 0:00:02]} 15. Bg4 {[%emt 0:00:33]} Bg5 {[%emt 0:00:25]} 16. Bxe6 {[%emt 0:00:49]} fxe6 {[%emt 0:00:02]} 17. Rb1 {[%emt 0:00:15]} Qb6 {[%emt 0:00:14]} 18. Nd2 {[%emt 0:01:04]} Rc6 {[%emt 0:02:21]} 19. Nf3 {[%emt 0:00:45]} Be7 {[%emt 0:00:02]} 20. Rc1 {[%emt 0:00:34]} Rfc8 {[%emt 0:00:57]} 21. Re1 {[%emt 0:01:09]} Qd8 {[%emt 0:00:33]} 22. Qe2 {[%emt 0:00:56]} Rc5 {[%emt 0:00:37]} 23. Qe3 {[%emt 0:01:40]} Qf8 {[%emt 0:00:31]} 24. Re2 {[%emt 0:00:28]} g5 {[%emt 0:00:36]} 25. h3 {[%emt 0:00:05]} Bd8 {[%emt 0:00:28]} 26. Ne1 {[%emt 0:00:50]} Bb6 {[%emt 0:00:20]} 27. Qg3 {[%emt 0:00:08]} Qg7 {[%emt 0:00:54]} 28. Qg4 {[%emt 0:00:11]} Qf6 {[%emt 0:00:13]} 29. Rd1 {[%emt 0:00:37]} R5c6 {[%emt 0:00:31]} 30. h4 {[%emt 0:00:26]} Kh7 {[%emt 0:01:46]} 31. hxg5 {[%emt 0:00:06]} hxg5 {[%emt 0:00:02]} 32. Nf3 {[%emt 0:00:02]} Kg6 {[%emt 0:00:55]} 33. Nh4+ {[%emt 0:00:02]} Kh6 {[%emt 0:00:02]} 34. Nf3 {[%emt 0:00:03]} Bd4 {[%emt 0:01:24]} 35. g3 {[%emt 0:01:15]} Bxc3 {[%emt 0:01:20]} 36. bxc3 {[%emt 0:00:04]} Na2 {[%emt 0:00:01]} 37. Kg2 {[%emt 0:00:07]} Nxc3 {[%emt 0:00:49]} 38. Rh1+ {[%emt 0:00:08]} Kg7 {[%emt 0:00:01]} 39. Nxg5 {[%emt 0:00:42]} Qg6 {[%emt 0:00:19]} 40. Nxe6+ {[%emt 0:00:22]} Kf6 {[%emt 0:00:02]} 41. Ng5 {[%emt 0:04:42]} Qxg5 {[%emt 0:00:15]} 42. Qf3+ {[%emt 0:00:01]} Kg7 {[%emt 0:00:11]} 43. Rh5 {[%emt 0:00:04]} Qg6 {[%emt 0:00:24]} 44. Re3 {[%emt 0:00:10]} Nxa4 {[%emt 0:01:25]} 45. Rf5 {[%emt 0:00:07]} Rc3 {[%emt 0:00:31]} 46. Qe2 {[%emt 0:00:09]} Rxc2 {[%emt 0:00:19]} 47. Qb5 {[%emt 0:00:28]} Nc5 {[%emt 0:00:16]} 48. Ref3 {[%emt 0:00:01]} a4 {[%emt 0:00:10]} 49. Qb1 {[%emt 0:00:06]} Rc4 {[%emt 0:00:19]} 50. Qh1 {[%emt 0:00:24]} Nxe4 {[%emt 0:00:26]} 51. Qh4 {[%emt 0:00:06]} R8c7 {[%emt 0:01:01]} 52. Qd8 {[%emt 0:00:10]} Nd2 {[%emt 0:00:33]} 53. Qf8+ {[%emt 0:00:02]} Kh7 {[%emt 0:00:02]} 54. Rf7+ {[%emt 0:00:01]} Rxf7 {[%emt 0:00:01]} 55. Rxf7+ {[%emt 0:00:01]} Qxf7 {[%emt 0:00:05]} 56. Qxf7+ {[%emt 0:00:01]} Kh6 {[%emt 0:00:00]} 57. Qf6+ {[%emt 0:00:07]} Kh7 {[%emt 0:00:03]} 58. Qxd6 {[%emt 0:00:17]} Rd4 {[%emt 0:00:40]} 59. Qe7+ {[%emt 0:00:01]} Kg8 {[%emt 0:00:05]} 60. Qxe5 {[%emt 0:00:02]} Rd8 {[%emt 0:00:03]} 61. Qg5+ {[%emt 0:00:07]} 1-0

[Event "FIDE Open World Rapid 2024"]
[Site "New York"]
[Date "2024.12.27"]
[Round "7.41"]
[White "Woodward, Andy"]
[Black "Onischuk, Alexander"]
[Result "1-0"]
[ECO "E05"]
[WhiteElo "2530"]
[BlackElo "2640"]
[Annotator "ChessBase"]
[PlyCount "69"]
[EventDate "2024.12.14"]
[EventType "swiss"]
[EventCountry "USA"]
[SourceTitle "playchess.com"]
[Source "ChessBase"]
[SourceQuality "1"]
[TimeControl "900+10"]

1. d4 {[%emt 0:00:02]} Nf6 {[%emt 0:00:03]} 2. c4 {[%emt 0:00:23]} e6 {[%emt 0:00:03]} 3. g3 {[%emt 0:00:03]} d5 {[%emt 0:00:09]} 4. Bg2 {[%emt 0:00:02]} Be7 {[%emt 0:00:01]} 5. Nf3 {[%emt 0:00:03]} O-O {[%emt 0:00:03]} 6. O-O {[%emt 0:00:09]} dxc4 {[%emt 0:00:07]} 7. Qc2 {[%emt 0:00:02]} a6 {[%emt 0:00:02]} 8. a4 {[%emt 0:00:02]} Bd7 {[%emt 0:00:02]} 9. Qxc4 {[%emt 0:00:03]} Bc6 {[%emt 0:00:02]} 10. Bf4 {[%emt 0:00:05]} Bd6 {[%emt 0:00:44]} 11. Qc1 {[%emt 0:00:03]} Nbd7 {[%emt 0:00:38]} 12. Nc3 {[%emt 0:00:05]} Nd5 {[%emt 0:01:21]} 13. Bd2 {[%emt 0:02:46]} N7f6 {[%emt 0:00:26]} 14. a5 {[%emt 0:01:00]} Qe7 {[%emt 0:00:40]} 15. Re1 {[%emt 0:00:24]} Nxc3 {[%emt 0:00:24]} 16. bxc3 {[%emt 0:00:03]} Ne4 {[%emt 0:00:12]} 17. Qc2 {[%emt 0:00:50]} f5 {[%emt 0:01:25]} 18. c4 {[%emt 0:06:04]} Nxd2 {[%emt 0:01:04]} 19. Nxd2 {[%emt 0:00:02]} Bxg2 {[%emt 0:01:26]} 20. Kxg2 {[%emt 0:00:02]} c5 {[%emt 0:00:18]} 21. d5 {[%emt 0:01:30]} Rae8 {[%emt 0:01:17]} 22. e4 {[%emt 0:01:51]} exd5 {[%emt 0:03:23]} 23. exd5 {[%emt 0:00:05]} Qf6 {[%emt 0:01:10]} 24. Rab1 {[%emt 0:01:31]} f4 {[%emt 0:01:15]} 25. Rxe8 {[%emt 0:00:39]} Rxe8 {[%emt 0:00:19]} 26. Qd3 {[%emt 0:00:49]} Qe7 {[%emt 0:01:51]} 27. Nf3 {[%emt 0:00:24]} h6 {[%emt 0:00:49]} 28. Qg6 {[%emt 0:00:13]} Rf8 {[%emt 0:00:11]} 29. Re1 {[%emt 0:00:04]} Qf6 {[%emt 0:00:09]} 30. Qd3 {[%emt 0:00:19]} fxg3 {[%emt 0:00:13]} 31. Re6 {[%emt 0:00:28]} Qd8 {[%emt 0:00:13]} 32. hxg3 {[%emt 0:00:01]} Rf6 {[%emt 0:00:14]} 33. Qe4 {[%emt 0:00:01]} Kf7 {[%emt 0:00:14]} 34. Nh4 {[%emt 0:00:12]} g5 {[%emt 0:00:11]} 35. Qh7+ {[%emt 0:00:02]} 1-0

[Event "FIDE Open World Rapid 2024"]
[Site "New York"]
[Date "2024.12.27"]
[Round "7.41"]
[White "Sharshenbekov, Emir"]
[Black "Ahmed, Nidal"]
[Result "1-0"]
[ECO "C48"]
[WhiteElo "2078"]
[BlackElo "1796"]
[Annotator "NA"]
[PlyCount "99"]
[EventDate "2024.12.14"]
[EventType "swiss"]
[EventCountry "USA"]
[SourceTitle "playchess.com"]
[Source "ChessBase"]
[SourceQuality "1"]
[TimeControl "900+10"]

1. e4 {[%emt 0:00:02]} e5 {[%emt 0:00:04]} 2. Nf3 {[%emt 0:00:02]} Nc6 {[%emt 0:00:02]} 3. Nc3 {[%emt 0:00:02]} Nf6 {[%emt 0:00:02]} 4. Bb5 {[%emt 0:00:03]} Bc5 {[%emt 0:00:43]} 5. O-O {[%emt 0:00:03]} d6 {[%emt 0:00:07]} 6. d4 {[%emt 0:02:31]} Bxd4 {[%emt 0:00:29]} 7. Nxd4 {[%emt 0:00:25]} exd4 {[%emt 0:00:02]} 8. Qxd4 {[%emt 0:00:18]} O-O {[%emt 0:00:21]} 9. Qd1 {[%emt 0:00:39]} h6 {[%emt 0:00:15]} 10. Re1 {[%emt 0:00:39]} a6 {[%emt 0:00:12]} 11. Bf1 {[%emt 0:00:03]} Re8 {[%emt 0:00:07]} 12. f3 {[%emt 0:00:06]} Be6 {[%emt 0:00:25]} 13. Bf4 {[%emt 0:00:11]} Ne5 {[%emt 0:00:15]} 14. Qd4 {[%emt 0:00:32]} Ng6 {[%emt 0:00:43]} 15. Be3 {[%emt 0:00:14]} d5 {[%emt 0:01:21]} 16. exd5 {[%emt 0:07:12]} Nxd5 {[%emt 0:00:07]} 17. Nxd5 {[%emt 0:00:02]} Qxd5 {[%emt 0:00:08]} 18. Qc3 {[%emt 0:00:02]} Rac8 {[%emt 0:01:11]} 19. Rad1 {[%emt 0:00:21]} Qh5 {[%emt 0:01:45]} 20. Bd4 {[%emt 0:00:08]} Nf4 {[%emt 0:00:40]} 21. Be5 {[%emt 0:02:58]} Nd5 {[%emt 0:01:25]} 22. Qd2 {[%emt 0:00:02]} Rcd8 {[%emt 0:00:30]} 23. c4 {[%emt 0:00:32]} Ne7 {[%emt 0:00:29]} 24. Qxd8 {[%emt 0:01:30]} Rxd8 {[%emt 0:00:02]} 25. Rxd8+ {[%emt 0:00:01]} Kh7 {[%emt 0:00:04]} 26. Bd3+ {[%emt 0:00:27]} Bf5 {[%emt 0:00:43]} 27. g4 {[%emt 0:00:20]} Qg5 {[%emt 0:00:18]} 28. Bf1 {[%emt 0:00:10]} Nc6 {[%emt 0:00:21]} 29. Re8 {[%emt 0:00:11]} Bg6 {[%emt 0:00:26]} 30. Bg3 {[%emt 0:00:09]} f6 {[%emt 0:00:16]} 31. Rc8 {[%emt 0:00:08]} h5 {[%emt 0:00:33]} 32. h4 {[%emt 0:00:09]} Qd2 {[%emt 0:00:27]} 33. Re2 {[%emt 0:00:16]} Qd4+ {[%emt 0:00:11]} 34. Kh2 {[%emt 0:00:10]} hxg4 {[%emt 0:00:12]} 35. fxg4 {[%emt 0:00:06]} Qxg4 {[%emt 0:00:06]} 36. Rxc7 {[%emt 0:00:11]} Ne5 {[%emt 0:00:17]} 37. Bxe5 {[%emt 0:00:09]} fxe5 {[%emt 0:00:04]} 38. Rg2 {[%emt 0:00:12]} Qf4+ {[%emt 0:00:15]} 39. Kg1 {[%emt 0:00:06]} e4 {[%emt 0:00:08]} 40. Re7 {[%emt 0:00:13]} Qe3+ {[%emt 0:00:08]} 41. Kh1 {[%emt 0:00:12]} Qh3+ {[%emt 0:00:19]} 42. Kg1 {[%emt 0:00:02]} e3 {[%emt 0:00:28]} 43. Rxg7+ {[%emt 0:00:13]} Kxg7 {[%emt 0:00:04]} 44. Rxg6+ {[%emt 0:00:01]} Kxg6 {[%emt 0:00:08]} 45. Bxh3 {[%emt 0:00:01]} Kh5 {[%emt 0:00:02]} 46. Bc8 {[%emt 0:00:04]} b6 {[%emt 0:00:06]} 47. Bxa6 {[%emt 0:00:09]} Kxh4 {[%emt 0:00:01]} 48. Kf1 {[%emt 0:00:02]} Kg4 {[%emt 0:00:02]} 49. Ke2 {[%emt 0:00:01]} Kf4 {[%emt 0:00:01]} 50. b4 {[%emt 0:00:01]} 1-0

[Event "FIDE Open World Rapid 2024"]
[Site "New York"]
[Date "2024.12.27"]
[Round "7.42"]
[White "Le, Quang Liem"]
[Black "Moroni, Luca Jr"]
[Result "1/2-1/2"]
[ECO "E21"]
[WhiteElo "2739"]
[BlackElo "2550"]
[Annotator "TA"]
[PlyCount "99"]
[EventDate "2024.12.14"]
[EventType "swiss"]
[EventCountry "USA"]
[SourceTitle "playchess.com"]
[Source "ChessBase"]
[SourceQuality "1"]
[TimeControl "900+10"]

{[%evp 41,99,25,75,65,95,88,108,74,204,222,227,211,233,227,239,86,105,104,93,76,122,86,83,84,91,97,237,133,133,115,129,123,104,112,169,106,159,145,328,72,72,72,80,71,81,74,79,0,0,0,0,0,0,0,0,0,0,0,0,0]} 1. d4 {[%emt 0:00:02]} Nf6 {[%emt 0:00:01]} 2. c4 {[%emt 0:00:12]} Nc6 {[%emt 0:00:01]} 3. Nf3 {[%emt 0:00:20]} e6 {[%emt 0:00:02]} 4. Nc3 {[%emt 0:00:41]} Bb4 {[%emt 0:00:01]} 5. Bd2 {[%emt 0:00:02]} O-O {[%emt 0:00:16]} 6. a3 {[%emt 0:00:13]} Bxc3 {[%emt 0:00:02]} 7. Bxc3 {[%emt 0:00:02]} Ne4 {[%emt 0:00:23]} 8. Rc1 {[%emt 0:00:01]} d6 {[%emt 0:00:13]} 9. g3 {[%emt 0:02:48]} e5 {[%emt 0:00:17]} 10. Bg2 {[%emt 0:00:10]} Nxc3 {[%emt 0:00:27]} 11. Rxc3 {[%emt 0:00:02]} Bg4 {[%emt 0:00:53]} 12. d5 {[%emt 0:01:20]} Bxf3 {[%emt 0:00:03]} 13. Bxf3 {[%emt 0:00:20]} Nb8 {[%emt 0:00:01]} 14. c5 {[%emt 0:01:02]} a5 {[%emt 0:01:15]} 15. O-O {[%emt 0:00:42]} Na6 {[%emt 0:00:42]} 16. cxd6 {[%emt 0:01:21]} cxd6 {[%emt 0:00:09]} 17. Qc2 {[%emt 0:00:32]} Qd7 {[%emt 0:02:43]} 18. b3 {[%emt 0:01:04]} g6 {[%emt 0:04:11]} 19. Rc1 {[%emt 0:00:07]} Rfb8 {[%emt 0:00:17]} 20. Qd2 {[%emt 0:02:47]} b5 {[%emt 0:00:47]} 21. b4 {[%emt 0:00:05]} axb4 {[%emt 0:01:11]} (21... Ra7 $11) 22. axb4 $16 {[%emt 0:00:01]} Rc8 {[%emt 0:00:55]} (22... Nxb4 $2 23. Rc7 Qd8 24. Qxb4 $18) 23. Rc6 {[%emt 0:00:03]} Qd8 {[%emt 0:01:06]} 24. Ra1 {[%emt 0:02:09]} Rxc6 {[%emt 0:00:25]} (24... Nc7 $16 25. Ra5 Rcb8) 25. dxc6 $18 {[%emt 0:00:02]} Nc7 {[%emt 0:00:01]} 26. Rxa8 {[%emt 0:00:29]} Nxa8 {[%emt 0:00:01]} 27. Qa2 {[%emt 0:00:14]} Nc7 {[%emt 0:00:17] [#]} 28. Bd5 $2 {[%emt 0:00:34]} (28. Qa7 $1 $18 {and the rest is easy.}) 28... Kg7 {[%emt 0:00:36]} 29. Kg2 {[%emt 0:00:55]} (29. Bxf7 $2 d5 30. Bxg6 hxg6 $19) 29... f5 {[%emt 0:00:20]} 30. Qa7 {[%emt 0:00:34]} Kf6 {[%emt 0:00:03]} (30... Qe7 $142 31. Qa2 Kf8) 31. e4 {[%emt 0:00:26]} fxe4 {[%emt 0:00:09]} 32. Bxe4 {[%emt 0:00:02]} d5 {[%emt 0:00:01]} 33. Bd3 {[%emt 0:00:04]} Qd6 {[%emt 0:01:23] [#]} (33... e4 $16 {might work better.} 34. Qd4+ Ke6 35. Bxe4 Qf6) 34. Qb7 {[%emt 0:00:13]} (34. Qb8 $1 $18) 34... e4 $16 {[%emt 0:00:19]} 35. Bxb5 {[%emt 0:00:05]} d4 {[%emt 0:00:01]} 36. Be2 {[%emt 0:00:39]} d3 {[%emt 0:00:01]} 37. Bd1 {[%emt 0:00:01]} e3 {[%emt 0:00:01]} (37... Nd5 $16 38. Kg1 (38. Qxh7 Qxc6 39. Qh8+ Kf5 $16) (38. c7 Nxc7 39. Qxe4 Qd5 $16) 38... h5 (38... Qxb4 $2 39. Qxb4 Nxb4 40. c7 $18)) 38. fxe3 $18 {[%emt 0:00:15]} Nd5 {[%emt 0:00:01]} 39. Qa7 {[%emt 0:00:14]} (39. Qxh7 Nxe3+ (39... Qxc6 $2 40. Qh4+ Kg7 41. Qd4+ Kh7 42. Bf3 $18) 40. Kf3 Nxd1 41. Qh8+ Ke7 42. Qh4+ Kf7 43. Qh7+ Ke6 44. Qxg6+ Ke7 45. Qxd6+ Kxd6 $11) 39... Qe5 $2 {[%emt 0:01:20]} (39... Qxb4 $16 40. Qd4+ (40. Qxh7 $2 Qd2+ 41. Kh3 Qxd1 $19) 40... Qxd4 41. exd4 Ke6 (41... Ne3+ $2 42. Kf3 $18)) 40. e4 $2 {[%emt 0:00:13]} ({Not} 40. c7 Nxc7 41. Kf1 Ne6 $14) (40. Qxh7 $18 {is more deadly.} Qe6 (40... Qxe3 $2 41. Bf3 $18) (40... Nxe3+ $2 41. Kf3 $18) 41. e4 Qxe4+ (41... Ne3+ $2 42. Kf3 $18) 42. Bf3) 40... Qxe4+ $16 {[%emt 0:00:24]} 41. Bf3 {[%emt 0:00:01]} Ne3+ {[%emt 0:00:03]} 42. Kf2 {[%emt 0:00:02]} Ng4+ {[%emt 0:00:05]} 43. Bxg4 {[%emt 0:00:11]} Qxg4 {[%emt 0:00:02]} 44. Qe3 {[%emt 0:00:26]} (44. Qxh7 $2 {loses.} Qe2+ (44... Qxb4 45. Qh4+ Qxh4 46. gxh4 $16) 45. Kg1 d2 46. Qh8+ Kf5 47. Qf8+ Ke4 48. Qe8+ Kd3 49. Qxg6+ Qe4 $19) (44. Qa1+ $16 Ke6 45. Qe1+ Kd5 46. c7) 44... Qxb4 $11 {[%emt 0:00:34]} 45. c7 {[%emt 0:00:05]} Qb2+ {[%emt 0:00:16]} 46. Kg1 {[%emt 0:00:10]} d2 {[%emt 0:00:09]} 47. Qf3+ {[%emt 0:00:09]} Kg7 {[%emt 0:00:03]} 48. c8=Q {[%emt 0:00:14]} Qc1+ {[%emt 0:00:02]} 49. Qxc1 {[%emt 0:00:05]} dxc1=Q+ {[%emt 0:00:04]} 50. Kg2 {[%emt 0:00:13]} 1/2-1/2

[Event "FIDE Open World Rapid 2024"]
[Site "New York"]
[Date "2024.12.27"]
[Round "7.42"]
[White "Soo, Kai Jie"]
[Black "Wong, Hayoung"]
[Result "1-0"]
[ECO "D20"]
[WhiteElo "2153"]
[BlackElo "1704"]
[Annotator "ChessBase"]
[PlyCount "79"]
[EventDate "2024.12.14"]
[EventType "swiss"]
[EventCountry "USA"]
[SourceTitle "playchess.com"]
[Source "ChessBase"]
[SourceQuality "1"]
[TimeControl "900+10"]

1. d4 {[%emt 0:00:01]} d5 {[%emt 0:00:01]} 2. c4 {[%emt 0:00:01]} dxc4 {[%emt 0:00:02]} 3. e4 {[%emt 0:00:01]} e5 {[%emt 0:00:05]} 4. Nf3 {[%emt 0:00:03]} exd4 {[%emt 0:00:10]} 5. Nxd4 {[%emt 0:00:03]} Bc5 {[%emt 0:00:45]} 6. Be3 {[%emt 0:00:04]} Qe7 {[%emt 0:00:52]} 7. Nc3 {[%emt 0:00:24]} Nf6 {[%emt 0:00:19]} 8. f3 {[%emt 0:00:05]} Bd7 {[%emt 0:00:31]} 9. Bxc4 {[%emt 0:00:08]} O-O {[%emt 0:00:43]} 10. Qe2 {[%emt 0:00:46]} Nc6 {[%emt 0:00:33]} 11. Nxc6 {[%emt 0:00:05]} Bxc6 {[%emt 0:00:04]} 12. O-O {[%emt 0:00:04]} Rfe8 {[%emt 0:00:54]} 13. Rae1 {[%emt 0:00:15]} Bxe3+ {[%emt 0:00:09]} 14. Qxe3 {[%emt 0:00:02]} Qb4 {[%emt 0:00:13]} 15. Bb3 {[%emt 0:00:02]} a5 {[%emt 0:01:11]} 16. Rf2 {[%emt 0:03:53]} a4 {[%emt 0:00:40]} 17. Bd1 {[%emt 0:00:03]} a3 {[%emt 0:01:10]} 18. b3 {[%emt 0:00:01]} Rad8 {[%emt 0:00:45]} 19. Rd2 {[%emt 0:00:10]} Rxd2 {[%emt 0:02:24]} 20. Qxd2 {[%emt 0:00:01]} Qc5+ {[%emt 0:00:01]} 21. Qe3 {[%emt 0:00:01]} Qxe3+ {[%emt 0:00:09]} 22. Rxe3 {[%emt 0:00:01]} Rd8 {[%emt 0:00:12]} 23. Bc2 {[%emt 0:00:03]} Rd2 {[%emt 0:01:00]} 24. Re2 {[%emt 0:00:01]} Rd8 {[%emt 0:00:17]} 25. Kf2 {[%emt 0:00:04]} Kf8 {[%emt 0:00:01]} 26. Ke3 {[%emt 0:00:02]} g6 {[%emt 0:00:15]} 27. b4 {[%emt 0:00:03]} Re8 {[%emt 0:00:46]} 28. Bb3 {[%emt 0:00:05]} b6 {[%emt 0:00:46]} 29. Rc2 {[%emt 0:00:35]} Ra8 {[%emt 0:00:47]} 30. h4 {[%emt 0:02:47]} Be8 {[%emt 0:01:23]} 31. g4 {[%emt 0:01:00]} c6 {[%emt 0:00:19]} 32. Ne2 {[%emt 0:00:19]} Rc8 {[%emt 0:00:19]} 33. g5 {[%emt 0:00:40]} Nd7 {[%emt 0:00:38]} 34. Nd4 {[%emt 0:00:14]} c5 {[%emt 0:00:29]} 35. Nb5 {[%emt 0:00:04]} Ke7 {[%emt 0:00:07]} 36. Nxa3 {[%emt 0:01:09]} Ra8 {[%emt 0:00:25]} 37. Nb5 {[%emt 0:00:01]} cxb4 {[%emt 0:00:25]} 38. Nc7 {[%emt 0:00:02]} Ra5 {[%emt 0:00:29]} 39. Nd5+ {[%emt 0:00:09]} Kd6 {[%emt 0:00:10]} 40. Rc8 {[%emt 0:00:19]} 1-0

[Event "FIDE Open World Rapid 2024"]
[Site "New York"]
[Date "2024.12.27"]
[Round "7.43"]
[White "Hakobyan, Aram"]
[Black "Van Foreest, Jorden"]
[Result "1/2-1/2"]
[ECO "C55"]
[WhiteElo "2625"]
[BlackElo "2677"]
[Annotator "ChessBase"]
[PlyCount "88"]
[EventDate "2024.12.14"]
[EventType "swiss"]
[EventCountry "USA"]
[SourceTitle "playchess.com"]
[Source "ChessBase"]
[SourceQuality "1"]
[TimeControl "900+10"]

1. e4 {[%emt 0:00:01]} e5 {[%emt 0:00:15]} 2. Nf3 {[%emt 0:00:03]} Nc6 {[%emt 0:00:02]} 3. Bc4 {[%emt 0:00:03]} Nf6 {[%emt 0:00:03]} 4. d3 {[%emt 0:00:02]} Be7 {[%emt 0:00:04]} 5. Nc3 {[%emt 0:00:43]} d6 {[%emt 0:00:23]} 6. a3 {[%emt 0:00:42]} O-O {[%emt 0:00:25]} 7. Be3 {[%emt 0:00:04]} a6 {[%emt 0:00:32]} 8. h3 {[%emt 0:00:13]} Be6 {[%emt 0:00:50]} 9. Nd5 {[%emt 0:00:23]} Bd7 {[%emt 0:00:38]} 10. O-O {[%emt 0:00:34]} Nxd5 {[%emt 0:00:50]} 11. Bxd5 {[%emt 0:00:02]} Kh8 {[%emt 0:00:24]} 12. Re1 {[%emt 0:01:21]} Rb8 {[%emt 0:01:00]} 13. d4 {[%emt 0:00:17]} exd4 {[%emt 0:00:07]} 14. Nxd4 {[%emt 0:00:02]} Bf6 {[%emt 0:00:02]} 15. c3 {[%emt 0:00:24]} Nxd4 {[%emt 0:00:39]} 16. cxd4 {[%emt 0:00:14]} c6 {[%emt 0:00:44]} 17. Ba2 {[%emt 0:00:08]} Be6 {[%emt 0:00:04]} 18. Bb1 {[%emt 0:02:25]} Re8 {[%emt 0:01:58]} 19. Bc2 {[%emt 0:05:59]} g6 {[%emt 0:02:58]} 20. Qf3 {[%emt 0:00:14]} Qe7 {[%emt 0:00:57]} 21. Rad1 {[%emt 0:00:13]} Rbd8 {[%emt 0:00:02]} 22. b4 {[%emt 0:01:44]} Kg7 {[%emt 0:00:26]} 23. Bf4 {[%emt 0:00:33]} Bg5 {[%emt 0:00:41]} 24. d5 {[%emt 0:00:25]} Bxf4 {[%emt 0:00:32]} 25. Qxf4 {[%emt 0:00:18]} Bd7 {[%emt 0:00:04]} 26. Bb3 {[%emt 0:00:28]} cxd5 {[%emt 0:00:43]} 27. Bxd5 {[%emt 0:00:04]} Be6 {[%emt 0:01:09]} 28. Re3 {[%emt 0:00:05]} Bxd5 {[%emt 0:00:19]} 29. Rxd5 {[%emt 0:00:04]} Qf6 {[%emt 0:00:11]} 30. Qxf6+ {[%emt 0:00:19]} Kxf6 {[%emt 0:00:02]} 31. f3 {[%emt 0:00:02]} Re5 {[%emt 0:00:06]} 32. Rd2 {[%emt 0:00:16]} Ke7 {[%emt 0:00:21]} 33. Kf2 {[%emt 0:00:13]} Rc8 {[%emt 0:00:11]} 34. Red3 {[%emt 0:00:06]} Rc6 {[%emt 0:00:02]} 35. h4 {[%emt 0:00:16]} h5 {[%emt 0:00:25]} 36. Kg3 {[%emt 0:00:07]} a5 {[%emt 0:00:08]} 37. bxa5 {[%emt 0:00:21]} Rxa5 {[%emt 0:00:01]} 38. Rb2 {[%emt 0:00:01]} b6 {[%emt 0:00:34]} 39. Rdb3 {[%emt 0:00:06]} Ke6 {[%emt 0:00:22]} 40. Kf4 {[%emt 0:00:06]} Ra4 {[%emt 0:00:03]} 41. Kg5 {[%emt 0:00:45]} Ra8 {[%emt 0:00:23]} 42. Rxb6 {[%emt 0:00:37]} Rxb6 {[%emt 0:00:06]} 43. Rxb6 {[%emt 0:00:01]} Rxa3 {[%emt 0:00:02]} 44. Kf4 {[%emt 0:00:42]} Ra5 {[%emt 0:00:09]} 1/2-1/2

[Event "FIDE Open World Rapid 2024"]
[Site "New York"]
[Date "2024.12.27"]
[Round "7.43"]
[White "Gretarsson, Helgi Ass"]
[Black "Makoto, Rodwell"]
[Result "1-0"]
[ECO "E69"]
[WhiteElo "2418"]
[BlackElo "2334"]
[Annotator "ChessBase"]
[PlyCount "65"]
[EventDate "2024.12.14"]
[EventType "swiss"]
[EventCountry "USA"]
[SourceTitle "playchess.com"]
[Source "ChessBase"]
[SourceQuality "1"]
[TimeControl "900+10"]

1. Nf3 {[%emt 0:00:01]} Nf6 {[%emt 0:00:01]} 2. c4 {[%emt 0:00:01]} g6 {[%emt 0:00:02]} 3. g3 {[%emt 0:00:04]} Bg7 {[%emt 0:00:01]} 4. Bg2 {[%emt 0:00:01]} O-O {[%emt 0:00:02]} 5. d4 {[%emt 0:00:02]} d6 {[%emt 0:00:04]} 6. O-O {[%emt 0:00:02]} Nbd7 {[%emt 0:00:07]} 7. Nc3 {[%emt 0:00:03]} e5 {[%emt 0:00:01]} 8. e4 {[%emt 0:00:02]} Re8 {[%emt 0:00:02]} 9. h3 {[%emt 0:00:40]} c6 {[%emt 0:00:02]} 10. Re1 {[%emt 0:02:24]} a5 {[%emt 0:00:09]} 11. Be3 {[%emt 0:00:31]} exd4 {[%emt 0:00:11]} 12. Nxd4 {[%emt 0:00:04]} Nc5 {[%emt 0:00:06]} 13. Qc2 {[%emt 0:00:09]} a4 {[%emt 0:00:03]} 14. Rad1 {[%emt 0:00:10]} Qa5 {[%emt 0:00:11]} 15. Bf4 {[%emt 0:00:08]} Bf8 {[%emt 0:00:12]} 16. Nf3 {[%emt 0:02:05]} Qb4 {[%emt 0:01:18]} 17. Bf1 {[%emt 0:00:03]} Ne6 {[%emt 0:01:59]} 18. Bd2 {[%emt 0:00:36]} Qa5 {[%emt 0:04:20]} 19. e5 {[%emt 0:00:32]} dxe5 {[%emt 0:03:42]} 20. Ne4 {[%emt 0:00:08]} Qd8 {[%emt 0:00:02]} 21. Bb4 {[%emt 0:02:10]} Nd4 {[%emt 0:00:15]} 22. Rxd4 {[%emt 0:00:09]} Nd7 {[%emt 0:01:22]} 23. Rxd7 {[%emt 0:04:54]} Bxd7 {[%emt 0:00:02]} 24. Bxf8 {[%emt 0:00:01]} Kxf8 {[%emt 0:00:01]} 25. Rd1 {[%emt 0:00:56]} Qe7 {[%emt 0:00:11]} 26. Qd2 {[%emt 0:00:01]} Bf5 {[%emt 0:00:53]} 27. Qh6+ {[%emt 0:00:07]} Kg8 {[%emt 0:00:01]} 28. Nfg5 {[%emt 0:00:38]} f6 {[%emt 0:00:23]} 29. Nxh7 {[%emt 0:00:02]} Bxe4 {[%emt 0:00:20]} 30. Rd7 {[%emt 0:00:01]} Qf7 {[%emt 0:00:32]} 31. Rxf7 {[%emt 0:00:04]} Kxf7 {[%emt 0:00:01]} 32. Nxf6 {[%emt 0:00:03]} Kxf6 {[%emt 0:00:05]} 33. Qh4+ {[%emt 0:00:01]} 1-0